[Event "Titled Tuesday Blitz August 08 Early 2023"]
[White "Krzyzanowski, Marcin"]
[Black "Sarana, Alexey"]
[WhiteFideId "1132199"]
[BlackFideId "24133795"]
[WhiteElo "2801"]
[BlackElo "3075"]
[Result "0-1"]
[Round "9"]
[TimeControl "180+1"]
[Date "2023.08.08"]
[WhiteClock "0:00:00"]
[BlackClock "0:00:14"]
[Board "12"]

1. e4 {[%clk 0:02:58]}  e5 {[%clk 0:02:50]} 2. Nf3 {[%clk 0:02:58]}  Nc6 {[%clk 0:02:50]} 3. Bb5 {[%clk 0:02:52]}  a6 {[%clk 0:02:49]} 4. Ba4 {[%clk 0:02:52]}  Nf6 {[%clk 0:02:50]} 5. Nc3 {[%clk 0:02:51]}  Bc5 {[%clk 0:02:48]} 6. d3 {[%clk 0:02:47]}  d6 {[%clk 0:02:46]} 7. a3 {[%clk 0:02:42]}  h6 {[%clk 0:02:45]} 8. h3 {[%clk 0:02:39]}  Be6 {[%clk 0:02:45]} 9. Be3 {[%clk 0:02:32]}  b5 {[%clk 0:02:42]} 10. Bb3 {[%clk 0:02:31]}  Bxb3 {[%clk 0:02:41]} 11. cxb3 {[%clk 0:02:32]}  O-O {[%clk 0:02:35]} 12. O-O {[%clk 0:02:26]}  Qd7 {[%clk 0:02:32]} 13. Rc1 {[%clk 0:02:20]}  Bxe3 {[%clk 0:02:32]} 14. fxe3 {[%clk 0:02:20]}  Ne7 {[%clk 0:02:32]} 15. d4 {[%clk 0:02:13]}  exd4 {[%clk 0:02:14]} 16. exd4 {[%clk 0:02:13]}  Ng6 {[%clk 0:02:14]} 17. e5 {[%clk 0:01:56]}  Nh5 {[%clk 0:02:13]} 18. Nd5 {[%clk 0:01:44]}  Rac8 {[%clk 0:02:12]} 19. Re1 {[%clk 0:01:25]}  Rfd8 {[%clk 0:02:04]} 20. Nb4 {[%clk 0:01:20]}  Nhf4 {[%clk 0:01:45]} 21. exd6 {[%clk 0:01:09]}  cxd6 {[%clk 0:01:44]} 22. Rxc8 {[%clk 0:01:00]}  Rxc8 {[%clk 0:01:45]} 23. Nxa6 {[%clk 0:00:51]}  Nd5 {[%clk 0:01:13]} 24. Qd2 {[%clk 0:00:36]}  Qf5 {[%clk 0:01:12]} 25. Nb4 {[%clk 0:00:34]}  Nxb4 {[%clk 0:01:09]} 26. Qxb4 {[%clk 0:00:35]}  Rc2 {[%clk 0:01:08]} 27. Qxd6 {[%clk 0:00:20]}  Nf4 {[%clk 0:01:09]} 28. Qd8+ {[%clk 0:00:11]}  Kh7 {[%clk 0:01:08]} 29. Nh4 {[%clk 0:00:11]}  Ne2+ {[%clk 0:00:44]} 30. Kh1 {[%clk 0:00:08]}  Qf2 {[%clk 0:00:34]} 31. Rd1 {[%clk 0:00:08]}  Ng3+ {[%clk 0:00:32]} 32. Kh2 {[%clk 0:00:08]}  Qf4 {[%clk 0:00:32]} 33. Kg1 {[%clk 0:00:07]}  Qf2+ {[%clk 0:00:18]} 34. Kh2 {[%clk 0:00:07]}  Nf1+ {[%clk 0:00:18]} 35. Kh1 {[%clk 0:00:06]}  Ne3 {[%clk 0:00:17]} 36. Rg1 {[%clk 0:00:06]}  g5 {[%clk 0:00:15]} 37. Nf3 {[%clk 0:00:06]}  Nxg2 {[%clk 0:00:14]} 38. Qf6 {[%clk 0:00:05]}  Kg8 {[%clk 0:00:14]} 39. Qd8+ {[%clk 0:00:04]}  Kg7 {[%clk 0:00:15]} 40. Qd6 {[%clk 0:00:04]}  Qxf3 {[%clk 0:00:14]} 41. Qe5+ {[%clk 0:00:04]}  Kh7 {[%clk 0:00:15]} 42. Qe7 {[%clk 0:00:00]}  Nh4+ {[%clk 0:00:14]} 0-1


[Site "https://www.chess.com"]

[Event "Titled Tuesday Blitz August 08 Early 2023"]
[White "Tabatabaei, M. Amin"]
[Black "Rahman, Masruri"]
[WhiteFideId "12521213"]
[BlackFideId "7101163"]
[WhiteElo "3011"]
[BlackElo "2788"]
[Result "1-0"]
[Round "9"]
[TimeControl "180+1"]
[Date "2023.08.08"]
[WhiteClock "0:00:20"]
[BlackClock "0:00:01"]
[Board "13"]

1. d4 {[%clk 0:03:00]}  e6 {[%clk 0:02:58]} 2. b4 {[%clk 0:03:01]}  Bxb4+ {[%clk 0:02:57]} 3. c3 {[%clk 0:03:02]}  Be7 {[%clk 0:02:56]} 4. e4 {[%clk 0:03:03]}  d5 {[%clk 0:02:56]} 5. e5 {[%clk 0:03:03]}  b6 {[%clk 0:02:56]} 6. h4 {[%clk 0:03:02]}  Qd7 {[%clk 0:02:54]} 7. h5 {[%clk 0:02:59]}  h6 {[%clk 0:02:53]} 8. Qg4 {[%clk 0:02:58]}  Bf8 {[%clk 0:02:52]} 9. Nh3 {[%clk 0:02:46]}  Ba6 {[%clk 0:02:52]} 10. Nf4 {[%clk 0:02:46]}  Bxf1 {[%clk 0:02:50]} 11. Kxf1 {[%clk 0:02:47]}  Nc6 {[%clk 0:02:47]} 12. Nd2 {[%clk 0:02:43]}  O-O-O {[%clk 0:02:47]} 13. Nb3 {[%clk 0:02:40]}  Nge7 {[%clk 0:02:47]} 14. a4 {[%clk 0:02:39]}  a5 {[%clk 0:02:47]} 15. Rb1 {[%clk 0:02:39]}  Nf5 {[%clk 0:02:46]} 16. Qe2 {[%clk 0:02:39]}  Nb8 {[%clk 0:02:30]} 17. Nxa5 {[%clk 0:01:56]}  Qxa4 {[%clk 0:02:14]} 18. Nb3 {[%clk 0:01:55]}  Qa6 {[%clk 0:01:47]} 19. Nd3 {[%clk 0:01:55]}  Qc4 {[%clk 0:01:32]} 20. Rh3 {[%clk 0:01:06]}  Nc6 {[%clk 0:01:17]} 21. g4 {[%clk 0:00:53]}  Nfe7 {[%clk 0:01:15]} 22. Nd2 {[%clk 0:00:53]}  Qa2 {[%clk 0:01:10]} 23. Bb2 {[%clk 0:00:51]}  Qa4 {[%clk 0:00:43]} 24. Rf3 {[%clk 0:00:48]}  Kd7 {[%clk 0:00:27]} 25. Ra1 {[%clk 0:00:43]}  Qc2 {[%clk 0:00:22]} 26. Rc1 {[%clk 0:00:43]}  Qa4 {[%clk 0:00:22]} 27. Rxf7 {[%clk 0:00:43]}  Ke8 {[%clk 0:00:17]} 28. Rf3 {[%clk 0:00:43]}  Rg8 {[%clk 0:00:11]} 29. Nf4 {[%clk 0:00:43]}  Kd7 {[%clk 0:00:10]} 30. Qd3 {[%clk 0:00:42]}  Na5 {[%clk 0:00:06]} 31. Kg2 {[%clk 0:00:29]}  Nc4 {[%clk 0:00:06]} 32. Nxc4 {[%clk 0:00:30]}  Qxc4 {[%clk 0:00:07]} 33. Qh7 {[%clk 0:00:30]}  Ra8 {[%clk 0:00:05]} 34. Re1 {[%clk 0:00:19]}  Ra2 {[%clk 0:00:04]} 35. Bc1 {[%clk 0:00:20]}  Qb3 {[%clk 0:00:01]} 36. Ng6 {[%clk 0:00:19]}  Nxg6 {[%clk 0:00:01]} 37. hxg6 {[%clk 0:00:20]}  Rh8 {[%clk 0:00:01]} 38. Qxh8 {[%clk 0:00:20]}  Qc2 {[%clk 0:00:01]} 39. Qxf8 {[%clk 0:00:20]} 1-0


[Site "https://www.chess.com"]

[Event "Titled Tuesday Blitz August 08 Early 2023"]
[White "Demidov, Mikhail"]
[Black "Adewumi, Tanitoluwa"]
[WhiteFideId "4197143"]
[BlackFideId "30966396"]
[WhiteElo "2959"]
[BlackElo "2756"]
[Result "0-1"]
[Round "9"]
[TimeControl "180+1"]
[Date "2023.08.08"]
[WhiteClock "0:00:12"]
[BlackClock "0:00:12"]
[Board "14"]

1. Nf3 {[%clk 0:02:48]}  Nf6 {[%clk 0:02:58]} 2. g3 {[%clk 0:02:48]}  g6 {[%clk 0:02:58]} 3. b3 {[%clk 0:02:48]}  Bg7 {[%clk 0:02:58]} 4. Bb2 {[%clk 0:02:48]}  O-O {[%clk 0:02:59]} 5. Bg2 {[%clk 0:02:48]}  d5 {[%clk 0:03:00]} 6. c4 {[%clk 0:02:48]}  c6 {[%clk 0:02:58]} 7. O-O {[%clk 0:02:47]}  Nbd7 {[%clk 0:02:51]} 8. Qc2 {[%clk 0:02:45]}  Re8 {[%clk 0:02:50]} 9. Nc3 {[%clk 0:02:37]}  a6 {[%clk 0:02:38]} 10. d4 {[%clk 0:02:35]}  b5 {[%clk 0:02:33]} 11. e4 {[%clk 0:02:33]}  b4 {[%clk 0:02:20]} 12. Nxd5 {[%clk 0:02:31]}  cxd5 {[%clk 0:02:20]} 13. exd5 {[%clk 0:02:31]}  Bb7 {[%clk 0:02:17]} 14. Ne5 {[%clk 0:02:25]}  Nxe5 {[%clk 0:02:07]} 15. dxe5 {[%clk 0:02:25]}  Nd7 {[%clk 0:02:06]} 16. Rfe1 {[%clk 0:02:21]}  Rc8 {[%clk 0:02:01]} 17. Rad1 {[%clk 0:02:20]}  Nc5 {[%clk 0:01:39]} 18. h4 {[%clk 0:02:19]}  Qb6 {[%clk 0:01:25]} 19. h5 {[%clk 0:02:18]}  e6 {[%clk 0:01:22]} 20. Qd2 {[%clk 0:02:17]}  exd5 {[%clk 0:01:18]} 21. cxd5 {[%clk 0:02:14]}  Rcd8 {[%clk 0:01:15]} 22. h6 {[%clk 0:02:14]}  Bh8 {[%clk 0:01:09]} 23. Bd4 {[%clk 0:02:10]}  Qb5 {[%clk 0:00:58]} 24. Qe3 {[%clk 0:01:35]}  Nd7 {[%clk 0:00:36]} 25. e6 {[%clk 0:01:35]}  fxe6 {[%clk 0:00:25]} 26. Bxh8 {[%clk 0:01:27]}  Kxh8 {[%clk 0:00:22]} 27. dxe6 {[%clk 0:01:25]}  Bxg2 {[%clk 0:00:08]} 28. Rxd7 {[%clk 0:00:35]}  Qxd7 {[%clk 0:00:02]} 29. exd7 {[%clk 0:00:13]}  Rxe3 {[%clk 0:00:02]} 30. Rxe3 {[%clk 0:00:13]}  Bc6 {[%clk 0:00:03]} 31. Re6 {[%clk 0:00:12]}  Bxd7 {[%clk 0:00:03]} 32. Rxa6 {[%clk 0:00:11]}  Kg8 {[%clk 0:00:04]} 33. Rb6 {[%clk 0:00:11]}  Ra8 {[%clk 0:00:04]} 34. Rxb4 {[%clk 0:00:09]}  Rxa2 {[%clk 0:00:05]} 35. f4 {[%clk 0:00:07]}  Kf7 {[%clk 0:00:04]} 36. Rb8 {[%clk 0:00:06]}  Bf5 {[%clk 0:00:03]} 37. Rh8 {[%clk 0:00:06]}  g5 {[%clk 0:00:03]} 38. fxg5 {[%clk 0:00:06]}  Kg6 {[%clk 0:00:04]} 39. Rg8+ {[%clk 0:00:06]}  Kh5 {[%clk 0:00:04]} 40. Rg7 {[%clk 0:00:07]}  Bg6 {[%clk 0:00:04]} 41. b4 {[%clk 0:00:06]}  Rb2 {[%clk 0:00:04]} 42. Rb7 {[%clk 0:00:05]}  Kxg5 {[%clk 0:00:05]} 43. b5 {[%clk 0:00:06]}  Kxh6 {[%clk 0:00:05]} 44. b6 {[%clk 0:00:05]}  Kg5 {[%clk 0:00:06]} 45. Rb8 {[%clk 0:00:05]}  Kg4 {[%clk 0:00:03]} 46. Kf1 {[%clk 0:00:06]}  Kxg3 {[%clk 0:00:03]} 47. Ke1 {[%clk 0:00:07]}  Kf4 {[%clk 0:00:04]} 48. b7 {[%clk 0:00:07]}  Ke5 {[%clk 0:00:04]} 49. Kd1 {[%clk 0:00:06]}  Kd6 {[%clk 0:00:04]} 50. Rd8+ {[%clk 0:00:05]}  Kc7 {[%clk 0:00:04]} 51. Rd4 {[%clk 0:00:05]}  Rxb7 {[%clk 0:00:05]} 52. Ke1 {[%clk 0:00:05]}  Rb6 {[%clk 0:00:05]} 53. Kf2 {[%clk 0:00:06]}  Rd6 {[%clk 0:00:05]} 54. Ra4 {[%clk 0:00:06]}  Kd7 {[%clk 0:00:06]} 55. Kg3 {[%clk 0:00:06]}  Ke6 {[%clk 0:00:06]} 56. Kh4 {[%clk 0:00:07]}  Kf6 {[%clk 0:00:07]} 57. Rb4 {[%clk 0:00:05]}  Re6 {[%clk 0:00:07]} 58. Kg3 {[%clk 0:00:05]}  Kg5 {[%clk 0:00:07]} 59. Rb5+ {[%clk 0:00:06]}  Bf5 {[%clk 0:00:08]} 60. Ra5 {[%clk 0:00:06]}  h5 {[%clk 0:00:08]} 61. Kg2 {[%clk 0:00:06]}  h4 {[%clk 0:00:09]} 62. Ra2 {[%clk 0:00:07]}  Kf4 {[%clk 0:00:09]} 63. Kh2 {[%clk 0:00:07]}  Re3 {[%clk 0:00:09]} 64. Ra4+ {[%clk 0:00:07]}  Be4 {[%clk 0:00:09]} 65. Ra2 {[%clk 0:00:07]}  Bf3 {[%clk 0:00:07]} 66. Ra4+ {[%clk 0:00:08]}  Re4 {[%clk 0:00:08]} 67. Ra2 {[%clk 0:00:08]}  Re2+ {[%clk 0:00:07]} 68. Rxe2 {[%clk 0:00:07]}  Bxe2 {[%clk 0:00:08]} 69. Kh3 {[%clk 0:00:08]}  Kg5 {[%clk 0:00:09]} 70. Kg2 {[%clk 0:00:08]}  Kg4 {[%clk 0:00:09]} 71. Kh2 {[%clk 0:00:09]}  h3 {[%clk 0:00:10]} 72. Kg1 {[%clk 0:00:10]}  Kg3 {[%clk 0:00:10]} 73. Kh1 {[%clk 0:00:10]}  Bf3+ {[%clk 0:00:11]} 74. Kg1 {[%clk 0:00:11]}  h2+ {[%clk 0:00:11]} 75. Kf1 {[%clk 0:00:12]}  h1=Q# {[%clk 0:00:12]} 0-1


[Site "https://www.chess.com"]

[Event "Titled Tuesday Blitz August 08 Early 2023"]
[White "Wagner, Dennis"]
[Black "Shimanov, Aleksandr"]
[WhiteFideId "24650684"]
[BlackFideId "4198603"]
[WhiteElo "2749"]
[BlackElo "2923"]
[Result "1-0"]
[Round "9"]
[TimeControl "180+1"]
[Date "2023.08.08"]
[WhiteClock "0:00:07"]
[BlackClock "0:00:02"]
[Board "17"]

1. e4 {[%clk 0:03:00]}  c6 {[%clk 0:02:57]} 2. d4 {[%clk 0:02:57]}  d5 {[%clk 0:02:57]} 3. exd5 {[%clk 0:02:57]}  cxd5 {[%clk 0:02:57]} 4. Bd3 {[%clk 0:02:58]}  Nf6 {[%clk 0:02:56]} 5. h3 {[%clk 0:02:56]}  Nc6 {[%clk 0:02:55]} 6. Nf3 {[%clk 0:02:56]}  g6 {[%clk 0:02:54]} 7. O-O {[%clk 0:02:55]}  a6 {[%clk 0:02:49]} 8. Re1 {[%clk 0:02:52]}  Bf5 {[%clk 0:02:49]} 9. Bxf5 {[%clk 0:02:36]}  gxf5 {[%clk 0:02:50]} 10. Qd3 {[%clk 0:02:36]}  Ne4 {[%clk 0:02:44]} 11. Bf4 {[%clk 0:02:35]}  e6 {[%clk 0:02:42]} 12. Nbd2 {[%clk 0:02:22]}  Bg7 {[%clk 0:02:35]} 13. Ne5 {[%clk 0:02:10]}  Bxe5 {[%clk 0:02:32]} 14. dxe5 {[%clk 0:02:01]}  Rg8 {[%clk 0:02:30]} 15. c4 {[%clk 0:01:51]}  Qh4 {[%clk 0:02:14]} 16. Nxe4 {[%clk 0:01:29]}  fxe4 {[%clk 0:01:58]} 17. Qe3 {[%clk 0:01:27]}  O-O-O {[%clk 0:01:54]} 18. cxd5 {[%clk 0:01:03]}  exd5 {[%clk 0:01:54]} 19. Rac1 {[%clk 0:01:03]}  Rg6 {[%clk 0:01:53]} 20. Bg3 {[%clk 0:00:59]}  Qe7 {[%clk 0:01:42]} 21. Qa7 {[%clk 0:00:45]}  Qb4 {[%clk 0:01:21]} 22. e6 {[%clk 0:00:31]}  Rxe6 {[%clk 0:01:18]} 23. Red1 {[%clk 0:00:21]}  d4 {[%clk 0:01:02]} 24. a3 {[%clk 0:00:16]}  Qb5 {[%clk 0:00:46]} 25. Rxc6+ {[%clk 0:00:09]}  Rxc6 {[%clk 0:00:06]} 26. Qb8+ {[%clk 0:00:09]}  Kd7 {[%clk 0:00:06]} 27. Rxd4+ {[%clk 0:00:09]}  Ke6 {[%clk 0:00:07]} 28. Qxd8 {[%clk 0:00:09]}  Rc1+ {[%clk 0:00:06]} 29. Kh2 {[%clk 0:00:09]}  Kf5 {[%clk 0:00:02]} 30. Rd5+ {[%clk 0:00:07]} 1-0


[Site "https://www.chess.com"]

[Event "Titled Tuesday Blitz August 08 Early 2023"]
[White "Nazari, Arad"]
[Black "Zemlyanskii, Ivan"]
[WhiteFideId "12577324"]
[BlackFideId "24249971"]
[WhiteElo "2745"]
[BlackElo "2910"]
[Result "1-0"]
[Round "9"]
[TimeControl "180+1"]
[Date "2023.08.08"]
[WhiteClock "0:00:04"]
[BlackClock "0:00:01"]
[Board "19"]

1. e4 {[%clk 0:02:51]}  c5 {[%clk 0:02:59]} 2. Nf3 {[%clk 0:02:51]}  e6 {[%clk 0:02:59]} 3. d4 {[%clk 0:02:51]}  cxd4 {[%clk 0:03:00]} 4. Nxd4 {[%clk 0:02:52]}  Nf6 {[%clk 0:03:01]} 5. Nc3 {[%clk 0:02:49]}  Nc6 {[%clk 0:03:01]} 6. Nxc6 {[%clk 0:02:49]}  bxc6 {[%clk 0:03:02]} 7. e5 {[%clk 0:02:49]}  Nd5 {[%clk 0:03:02]} 8. Ne4 {[%clk 0:02:25]}  Qc7 {[%clk 0:03:02]} 9. f4 {[%clk 0:02:18]}  Rb8 {[%clk 0:03:01]} 10. c4 {[%clk 0:02:14]}  Bb4+ {[%clk 0:03:01]} 11. Ke2 {[%clk 0:02:14]}  O-O {[%clk 0:03:02]} 12. a3 {[%clk 0:02:13]}  Be7 {[%clk 0:03:01]} 13. cxd5 {[%clk 0:02:12]}  cxd5 {[%clk 0:03:02]} 14. Nd6 {[%clk 0:02:10]}  f6 {[%clk 0:03:02]} 15. Nxc8 {[%clk 0:02:04]}  Rfxc8 {[%clk 0:03:03]} 16. exf6 {[%clk 0:02:00]}  Bxf6 {[%clk 0:03:04]} 17. Rb1 {[%clk 0:01:59]}  Kh8 {[%clk 0:03:04]} 18. Kf3 {[%clk 0:01:59]}  e5 {[%clk 0:02:28]} 19. Kg4 {[%clk 0:01:19]}  Qc6 {[%clk 0:02:05]} 20. f5 {[%clk 0:01:01]}  g6 {[%clk 0:01:51]} 21. fxg6 {[%clk 0:00:39]}  Qe6+ {[%clk 0:01:41]} 22. Kg3 {[%clk 0:00:38]}  Rg8 {[%clk 0:01:24]} 23. h3 {[%clk 0:00:35]}  e4 {[%clk 0:01:15]} 24. Bf4 {[%clk 0:00:27]}  Be5 {[%clk 0:00:49]} 25. Bxe5+ {[%clk 0:00:26]}  Qxe5+ {[%clk 0:00:50]} 26. Kf2 {[%clk 0:00:26]}  Rxg6 {[%clk 0:00:46]} 27. Qd2 {[%clk 0:00:12]}  e3+ {[%clk 0:00:29]} 28. Qxe3 {[%clk 0:00:12]}  Qf5+ {[%clk 0:00:28]} 29. Kg1 {[%clk 0:00:10]}  Qxb1 {[%clk 0:00:26]} 30. Qe5+ {[%clk 0:00:11]}  Kg8 {[%clk 0:00:18]} 31. Qxb8+ {[%clk 0:00:11]}  Kg7 {[%clk 0:00:18]} 32. Kh2 {[%clk 0:00:12]}  Qf5 {[%clk 0:00:14]} 33. Rg1 {[%clk 0:00:11]}  d4 {[%clk 0:00:11]} 34. Be2 {[%clk 0:00:08]}  d3 {[%clk 0:00:11]} 35. Bf3 {[%clk 0:00:06]}  d6 {[%clk 0:00:07]} 36. Qc7+ {[%clk 0:00:06]}  Kh6 {[%clk 0:00:06]} 37. Qc1+ {[%clk 0:00:06]}  Kg7 {[%clk 0:00:06]} 38. Qe3 {[%clk 0:00:07]}  Re6 {[%clk 0:00:06]} 39. Qd4+ {[%clk 0:00:08]}  Kg6 {[%clk 0:00:03]} 40. Rd1 {[%clk 0:00:04]}  Qf6 {[%clk 0:00:01]} 1-0


[Site "https://www.chess.com"]

[Event "Titled Tuesday Blitz August 08 Early 2023"]
[White "Khubukshanov, Erdem"]
[Black "splendidkid"]
[WhiteFideId "54114527"]
[WhiteElo "2849"]
[BlackElo "2742"]
[Result "1-0"]
[Round "9"]
[TimeControl "180+1"]
[Date "2023.08.08"]
[WhiteClock "0:01:38"]
[BlackClock "0:00:59"]
[Board "21"]

1. e4 {[%clk 0:03:00]}  c5 {[%clk 0:02:59]} 2. Nf3 {[%clk 0:03:01]}  d6 {[%clk 0:03:00]} 3. Bb5+ {[%clk 0:03:00]}  Nd7 {[%clk 0:02:59]} 4. Ba4 {[%clk 0:03:00]}  a6 {[%clk 0:03:00]} 5. c4 {[%clk 0:02:59]}  Nf6 {[%clk 0:02:59]} 6. O-O {[%clk 0:03:00]}  Nxe4 {[%clk 0:02:57]} 7. Re1 {[%clk 0:03:00]}  Nf6 {[%clk 0:02:56]} 8. d4 {[%clk 0:03:00]}  cxd4 {[%clk 0:02:56]} 9. Nxd4 {[%clk 0:02:58]}  g6 {[%clk 0:02:47]} 10. Nf3 {[%clk 0:01:59]}  Qc7 {[%clk 0:01:17]} 11. Bf4 {[%clk 0:01:58]}  e5 {[%clk 0:01:11]} 12. Nxe5 {[%clk 0:01:50]}  Be7 {[%clk 0:00:57]} 13. Nxd7 {[%clk 0:01:41]}  Bxd7 {[%clk 0:00:58]} 14. Bxd6 {[%clk 0:01:39]}  Qxd6 {[%clk 0:00:59]} 15. Qxd6 {[%clk 0:01:38]}  Bxa4 {[%clk 0:00:59]} 1-0


[Site "https://www.chess.com"]

[Event "Titled Tuesday Blitz August 08 Early 2023"]
[White "Kushko, Dmitriy"]
[Black "Alex_Sahakyan2006"]
[WhiteFideId "14162261"]
[WhiteElo "2844"]
[BlackElo "2729"]
[Result "1-0"]
[Round "9"]
[TimeControl "180+1"]
[Date "2023.08.08"]
[WhiteClock "0:00:14"]
[BlackClock "0:00:04"]
[Board "22"]

1. Nf3 {[%clk 0:03:00]}  d5 {[%clk 0:02:57]} 2. g3 {[%clk 0:03:01]}  Bg4 {[%clk 0:02:56]} 3. Bg2 {[%clk 0:03:01]}  Nd7 {[%clk 0:02:51]} 4. h3 {[%clk 0:03:01]}  Bxf3 {[%clk 0:02:51]} 5. Bxf3 {[%clk 0:03:01]}  c6 {[%clk 0:02:50]} 6. O-O {[%clk 0:03:01]}  Ngf6 {[%clk 0:02:46]} 7. d3 {[%clk 0:03:00]}  e6 {[%clk 0:02:43]} 8. Bg2 {[%clk 0:03:00]}  h5 {[%clk 0:02:40]} 9. h4 {[%clk 0:02:54]}  Ng4 {[%clk 0:02:37]} 10. c4 {[%clk 0:02:45]}  dxc4 {[%clk 0:02:29]} 11. dxc4 {[%clk 0:02:44]}  Bc5 {[%clk 0:02:28]} 12. Nc3 {[%clk 0:02:38]}  Nde5 {[%clk 0:02:25]} 13. Ne4 {[%clk 0:02:30]}  Be7 {[%clk 0:02:02]} 14. Qb3 {[%clk 0:02:27]}  Qb6 {[%clk 0:02:03]} 15. Bf4 {[%clk 0:02:19]}  O-O-O {[%clk 0:01:55]} 16. Qxb6 {[%clk 0:02:12]}  axb6 {[%clk 0:01:53]} 17. f3 {[%clk 0:02:12]}  Nxc4 {[%clk 0:01:29]} 18. fxg4 {[%clk 0:02:12]}  hxg4 {[%clk 0:01:29]} 19. b3 {[%clk 0:02:04]}  Na3 {[%clk 0:01:29]} 20. Rad1 {[%clk 0:02:01]}  Nb5 {[%clk 0:01:06]} 21. Be3 {[%clk 0:01:58]}  f5 {[%clk 0:00:54]} 22. Ng5 {[%clk 0:01:58]}  Nc3 {[%clk 0:00:50]} 23. Rxd8+ {[%clk 0:01:44]}  Bxd8 {[%clk 0:00:51]} 24. Kf2 {[%clk 0:01:11]}  Re8 {[%clk 0:00:38]} 25. Bd4 {[%clk 0:01:05]}  Bf6 {[%clk 0:00:37]} 26. Bxc3 {[%clk 0:00:58]}  Bxc3 {[%clk 0:00:36]} 27. Rd1 {[%clk 0:00:54]}  Kc7 {[%clk 0:00:34]} 28. e3 {[%clk 0:00:52]}  Bf6 {[%clk 0:00:33]} 29. a4 {[%clk 0:00:49]}  e5 {[%clk 0:00:22]} 30. Bf1 {[%clk 0:00:45]}  e4 {[%clk 0:00:16]} 31. Bc4 {[%clk 0:00:42]}  Re5 {[%clk 0:00:09]} 32. Ne6+ {[%clk 0:00:36]}  Kc8 {[%clk 0:00:09]} 33. Nf4 {[%clk 0:00:27]}  Kc7 {[%clk 0:00:08]} 34. Rd2 {[%clk 0:00:25]}  Be7 {[%clk 0:00:08]} 35. Ne6+ {[%clk 0:00:24]}  Kc8 {[%clk 0:00:08]} 36. Nxg7 {[%clk 0:00:24]}  b5 {[%clk 0:00:08]} 37. axb5 {[%clk 0:00:24]}  cxb5 {[%clk 0:00:06]} 38. Rd5 {[%clk 0:00:18]}  Bf6 {[%clk 0:00:06]} 39. Rxe5 {[%clk 0:00:14]}  Bxe5 {[%clk 0:00:06]} 40. Be6+ {[%clk 0:00:14]}  Kd8 {[%clk 0:00:04]} 41. Nxf5 {[%clk 0:00:14]} 1-0


[Site "https://www.chess.com"]

[Event "Titled Tuesday Blitz August 08 Early 2023"]
[White "Korchmar, Vasiliy"]
[Black "Timofeev, Artyom"]
[WhiteFideId "24131750"]
[BlackFideId "4140419"]
[WhiteElo "2712"]
[BlackElo "2842"]
[Result "1-0"]
[Round "9"]
[TimeControl "180+1"]
[Date "2023.08.08"]
[WhiteClock "0:00:12"]
[BlackClock "0:00:46"]
[Board "23"]

1. e4 {[%clk 0:03:00]}  e6 {[%clk 0:02:59]} 2. d4 {[%clk 0:03:00]}  d5 {[%clk 0:02:59]} 3. e5 {[%clk 0:03:00]}  c5 {[%clk 0:02:58]} 4. c3 {[%clk 0:03:01]}  Nc6 {[%clk 0:02:56]} 5. Nf3 {[%clk 0:03:01]}  Qb6 {[%clk 0:02:56]} 6. Be2 {[%clk 0:03:00]}  f6 {[%clk 0:02:53]} 7. O-O {[%clk 0:02:56]}  fxe5 {[%clk 0:02:53]} 8. dxe5 {[%clk 0:02:51]}  g6 {[%clk 0:02:46]} 9. c4 {[%clk 0:02:50]}  Nge7 {[%clk 0:02:43]} 10. Nc3 {[%clk 0:02:49]}  Qd8 {[%clk 0:02:21]} 11. Bg5 {[%clk 0:02:46]}  Bg7 {[%clk 0:02:20]} 12. cxd5 {[%clk 0:02:16]}  exd5 {[%clk 0:02:19]} 13. Qb3 {[%clk 0:02:16]}  c4 {[%clk 0:02:14]} 14. Qa3 {[%clk 0:02:09]}  Qb6 {[%clk 0:01:38]} 15. Rad1 {[%clk 0:01:01]}  Qb4 {[%clk 0:01:36]} 16. Qxb4 {[%clk 0:00:42]}  Nxb4 {[%clk 0:01:35]} 17. Bxe7 {[%clk 0:00:43]}  Kxe7 {[%clk 0:01:35]} 18. a3 {[%clk 0:00:43]}  Nc6 {[%clk 0:01:15]} 19. Nxd5+ {[%clk 0:00:43]}  Kf8 {[%clk 0:01:15]} 20. Bxc4 {[%clk 0:00:39]}  Be6 {[%clk 0:01:15]} 21. Ng5 {[%clk 0:00:30]}  Bxd5 {[%clk 0:01:15]} 22. Bxd5 {[%clk 0:00:27]}  Ke7 {[%clk 0:01:15]} 23. f4 {[%clk 0:00:26]}  Rac8 {[%clk 0:01:02]} 24. Ne4 {[%clk 0:00:19]}  Rc7 {[%clk 0:00:59]} 25. Rd3 {[%clk 0:00:14]}  Rd8 {[%clk 0:00:55]} 26. Rfd1 {[%clk 0:00:14]}  h6 {[%clk 0:00:50]} 27. Bxc6 {[%clk 0:00:12]}  Rxd3 {[%clk 0:00:50]} 28. Rxd3 {[%clk 0:00:13]}  Rxc6 {[%clk 0:00:50]} 29. Kf2 {[%clk 0:00:13]}  g5 {[%clk 0:00:50]} 30. g3 {[%clk 0:00:13]}  Rc4 {[%clk 0:00:50]} 31. Ke3 {[%clk 0:00:12]}  gxf4+ {[%clk 0:00:49]} 32. gxf4 {[%clk 0:00:13]}  Ke6 {[%clk 0:00:49]} 33. Rd6+ {[%clk 0:00:11]}  Kf5 {[%clk 0:00:49]} 34. Ng3+ {[%clk 0:00:10]}  Kg4 {[%clk 0:00:49]} 35. Rg6+ {[%clk 0:00:11]}  Kh3 {[%clk 0:00:46]} 36. Rxg7 {[%clk 0:00:12]} 1-0


[Site "https://www.chess.com"]

[Event "Titled Tuesday Blitz August 08 Early 2023"]
[White "Pakleza, Zbigniew"]
[Black "Sokolovsky, Yahli"]
[WhiteFideId "1119290"]
[BlackFideId "2820242"]
[WhiteElo "2832"]
[BlackElo "2696"]
[Result "1-0"]
[Round "9"]
[TimeControl "180+1"]
[Date "2023.08.08"]
[WhiteClock "0:00:15"]
[BlackClock "0:00:00"]
[Board "24"]

1. d4 {[%clk 0:03:00]}  d5 {[%clk 0:02:59]} 2. Bf4 {[%clk 0:03:00]}  c6 {[%clk 0:02:57]} 3. e3 {[%clk 0:03:00]}  Bf5 {[%clk 0:02:57]} 4. c4 {[%clk 0:03:01]}  e6 {[%clk 0:02:57]} 5. Nc3 {[%clk 0:03:01]}  Na6 {[%clk 0:02:25]} 6. cxd5 {[%clk 0:02:44]}  exd5 {[%clk 0:02:14]} 7. Bxa6 {[%clk 0:02:34]}  bxa6 {[%clk 0:02:15]} 8. Nf3 {[%clk 0:02:29]}  Qb6 {[%clk 0:02:10]} 9. O-O {[%clk 0:02:29]}  Qxb2 {[%clk 0:02:03]} 10. Na4 {[%clk 0:02:23]}  Qb5 {[%clk 0:01:52]} 11. Nc5 {[%clk 0:02:03]}  Nf6 {[%clk 0:01:18]} 12. a4 {[%clk 0:01:52]}  Qb6 {[%clk 0:01:18]} 13. Nh4 {[%clk 0:01:38]}  Bg4 {[%clk 0:01:14]} 14. f3 {[%clk 0:01:29]}  Bc8 {[%clk 0:01:15]} 15. Qc2 {[%clk 0:01:11]}  g6 {[%clk 0:00:40]} 16. Rab1 {[%clk 0:01:08]}  Qd8 {[%clk 0:00:40]} 17. Nb7 {[%clk 0:00:45]}  Bxb7 {[%clk 0:00:14]} 18. Rxb7 {[%clk 0:00:46]}  Rc8 {[%clk 0:00:15]} 19. Nf5 {[%clk 0:00:26]}  gxf5 {[%clk 0:00:12]} 20. Qxf5 {[%clk 0:00:27]}  Nd7 {[%clk 0:00:08]} 21. Rfb1 {[%clk 0:00:18]}  Be7 {[%clk 0:00:06]} 22. Rxa7 {[%clk 0:00:16]}  Nb6 {[%clk 0:00:05]} 23. Rxb6 {[%clk 0:00:14]}  Qxb6 {[%clk 0:00:03]} 24. Qxc8+ {[%clk 0:00:14]}  Bd8 {[%clk 0:00:00]} 25. Qd7+ {[%clk 0:00:15]} 1-0


[Site "https://www.chess.com"]